bitfinex-derivatives/quotes_ETHF0:USTF0_20250205
["timestamp","ask_amount","ask_price","bid_price","bid_amount"]
[1738788947442,0.00543144,2762.2,2762.1,6.0867783]
[1738788949349,0.57888,2763.6,2762.1,6.0867783]
[1738788949350,3.2078,2763.0,2762.2,0.57914]
[1738788949656,3.2078,2763.0,2762.9,3.87019269]
[1738788950152,3.2078,2763.0,2762.9,8.51584742]
[1738788952652,0.00543144,2763.2,2762.9,8.51584742]
[1738788952850,0.00543144,2763.2,2763.0,1.4716]
[1738788953254,0.00543144,2763.2,2763.1,4.64566199]
[1738788953451,0.00543144,2763.2,2763.1,5.00806199]
[1738788953656,0.00543144,2763.2,2763.1,5.29918686]
[1738788953859,3.2078,2763.9,2763.1,13.50698686]
[1738788954155,3.2078,2763.9,2763.8,3.87019269]
[1738788954857,3.2078,2764.2,2763.8,8.57761264]
[1738788955060,0.00543144,2764.1,2763.8,8.57761264]
[1738788955656,0.00543144,2764.1,2763.8,3.87019269]
[1738788956466,0.00543144,2764.1,2763.6,0.00543144]
[1738788956467,3.2078,2763.9,2763.6,0.00543144]
[1738788957661,6.2028,2763.9,2763.6,0.00543144]
[1738788959560,3.2078,2763.9,2763.6,0.00543144]
[1738788959763,3.78661,2763.9,2762.8,4.62509269]
[1738788960064,3.2078,2763.2,2762.9,4.69591017]
[1738788960467,3.2078,2763.2,2762.8,3.87019269]
[1738788960669,3.2078,2763.2,2762.6,1.4315]
[1738788960865,3.2078,2762.9,2762.7,0.00543144]
[1738788961559,1.5115,2762.8,2762.7,0.00543144]
[1738788961760,1.5115,2762.8,2761.6,1.4317]
[1738788961761,1.5115,2762.8,2761.6,5.30189269]
[1738788961965,3.2078,2762.3,2761.9,3.87019269]
[1738788962165,3.2078,2762.3,2762.0,4.80294372]
[1738788962362,3.2078,2762.3,2762.2,3.87019269]
[1738788962762,3.2078,2762.3,2762.2,8.56840128]
[1738788963857,3.2078,2762.3,2762.0,0.00543144]
[1738788964369,3.2078,2762.3,2762.2,3.87019269]
[1738788964566,3.2078,2762.3,2762.1,4.64585072]
[1738788964762,3.2078,2762.3,2762.0,0.00543144]
[1738788965065,3.2078,2762.3,2762.2,3.87019269]
[1738788966168,0.00543144,2762.5,2762.2,8.65395009]
[1738788966369,0.00543144,2762.5,2762.3,0.7104]
[1738788966560,0.00543144,2762.5,2762.2,8.65395009]
[1738788966762,0.00543144,2762.5,2762.0,0.00543144]
[1738788966763,3.2078,2762.4,2762.0,0.00543144]
[1738788969963,3.2078,2762.4,2762.1,4.67283488]
[1738788970670,0.00543144,2762.5,2762.2,3.87019269]
[1738788970861,3.2078,2763.6,2763.1,3.87019269]
[1738788971066,3.2078,2763.6,2763.4,3.87019269]
[1738788971264,3.2078,2763.6,2763.2,4.69607217]
[1738788971565,0.7031,2763.7,2763.1,3.87019269]
[1738788971971,0.70853144,2763.7,2763.2,4.72869221]
[1738788972175,3.2078,2763.6,2763.2,4.72869221]
[1738788973867,3.2078,2763.9,2763.5,3.87019269]
[1738788974070,3.2078,2763.9,2763.8,3.87019269]
[1738788974465,3.2078,2764.2,2763.8,8.60506402]
[1738788974776,3.2078,2764.2,2764.1,3.87019269]
[1738788975170,0.00543144,2764.4,2764.1,8.48728608]
[1738788975563,0.00543144,2764.4,2763.8,3.87019269]
[1738788975564,3.21323144,2764.4,2763.8,3.87019269]
[1738788975965,3.21323144,2764.4,2764.0,4.71188669]
[1738788976168,3.21323144,2764.4,2764.1,3.87019269]
[1738788976676,3.21323144,2764.4,2764.1,8.58643885]
[1738788976864,0.00543144,2764.4,2764.1,3.87019269]
[1738788977064,0.00543144,2764.4,2764.2,4.71624616]
[1738788977372,0.00543144,2764.4,2764.2,5.44314616]
[1738788979476,0.00543144,2764.4,2764.2,4.71624616]
[1738788979672,3.21323144,2764.4,2764.1,3.87019269]
[1738788980472,3.21323144,2764.4,2763.8,3.87019269]
[1738788980777,3.21323144,2764.4,2763.8,8.6075394]
[1738788981076,3.21323144,2764.4,2764.1,3.87019269]
[1738788981575,3.21323144,2764.4,2764.2,4.73734671]
[1738788982876,0.00543144,2764.4,2764.2,4.73734671]
[1738788985980,3.21323144,2764.4,2764.1,3.87019269]
[1738788987378,0.00543144,2764.4,2764.2,4.78406197]
[1738788989174,3.21323144,2764.4,2764.1,3.87019269]
[1738788989380,3.21323144,2764.4,2763.8,3.87019269]
[1738788989581,2.2027,2764.3,2763.8,3.87019269]
[1738788989787,3.2078,2764.1,2763.8,8.53091647]
[1738788990375,2.2027,2764.3,2763.8,8.53091647]
[1738788990579,2.2027,2764.3,2764.1,3.87019269]
[1738788990782,1.4514,2764.3,2764.1,3.87019269]
[1738788991983,3.2078,2764.4,2764.2,4.64136188]
[1738788992181,3.2078,2764.7,2764.2,4.64136188]
[1738788992380,3.2078,2764.7,2764.5,3.87019269]
[1738788993083,3.2078,2764.7,2764.2,3.87019269]
[1738788993984,3.2078,2764.4,2764.2,3.87019269]
[1738788994180,3.2078,2764.4,2763.9,3.87019269]
[1738788994587,3.2078,2764.4,2763.9,8.55449244]
[1738788995579,1.4146,2764.3,2763.9,8.55449244]
[1738788996184,1.4146,2764.3,2764.2,3.87019269]
[1738788996382,3.2078,2764.4,2764.2,3.87019269]
[1738788996988,3.2078,2764.4,2764.3,4.64378929]
[1738788997288,3.2078,2764.4,2764.3,5.42328929]
[1738788998289,3.2078,2764.7,2764.3,5.42328929]
[1738788999980,3.2078,2764.7,2764.3,4.64378929]
[1738789000179,3.2078,2764.4,2764.2,3.87019269]
[1738789001690,3.2078,2764.7,2764.3,4.67107131]
[1738789001990,3.2078,2764.7,2764.3,6.11517131]
[1738789002994,3.2078,2764.7,2764.6,3.87019269]
[1738789004794,3.2078,2764.7,2764.6,3.08579425]
[1738789005586,3.2078,2764.7,2764.0,4.29629985]
[1738789005788,0.00543144,2764.9,2764.0,3.08579425]
[1738789005789,3.2078,2764.2,2764.0,3.08579425]
[1738789005991,3.2078,2764.5,2764.0,7.8037984]
[1738789006185,3.2078,2764.5,2764.3,3.08579425]
[1738789006590,3.2078,2764.5,2764.0,3.86864133]
[1738789007095,3.2078,2764.5,2764.1,4.64452467]
[1738789007487,3.2078,2764.5,2764.0,3.86864133]
[1738789007692,3.2078,2764.2,2764.0,3.86864133]
[1738789007995,0.7652,2764.4,2764.0,3.86864133]
[1738789008299,0.7664,2764.6,2764.3,3.86864133]
[1738789008591,3.2078,2764.8,2764.4,1.2105056]
[1738789008790,3.2078,2764.8,2764.6,3.86864133]
[1738789009297,3.2078,2764.8,2764.7,4.61449385]
[1738789009500,3.2078,2764.8,2764.6,3.86864133]
[1738789010288,3.2078,2764.8,2764.4,1.2105056]
[1738789010491,3.9151,2764.8,2764.3,5.07914693]
[1738789010692,3.9151,2764.8,2764.6,3.86864133]
[1738789011598,3.9151,2764.8,2764.3,3.86864133]
[1738789011795,3.2078,2764.5,2764.3,3.86864133]
[1738789013693,3.2078,2764.5,2764.0,0.7096]
[1738789013893,3.2078,2764.5,2764.0,1.9201056]
[1738789014095,3.9151,2764.8,2764.3,3.86864133]
[1738789014896,3.2078,2764.8,2764.7,3.86864133]
[1738789018305,3.2078,2764.8,2764.4,1.2105056]
[1738789018606,0.7072,2764.7,2764.4,3.86864133]
[1738789018801,3.2078,2764.8,2764.5,4.69370082]
[1738789022101,0.00543144,2764.9,2764.6,8.93298897]
[1738789022304,0.7072,2765.6,2764.7,8.28694693]
[1738789022609,3.2078,2765.7,2765.4,3.86864133]
[1738789022808,3.2078,2765.7,2765.5,1.5547]
[1738789023008,3.2078,2765.7,2765.5,6.33253276]
[1738789023218,3.2078,2766.0,2765.5,6.33253276]
[1738789023508,3.2078,2766.8,2765.9,3.86864133]
[1738789023808,0.00543144,2766.6,2766.5,3.86864133]
[1738789024311,0.00543144,2766.6,2766.5,8.66823216]
[1738789024906,0.00543144,2766.6,2766.2,3.86864133]
[1738789025112,3.2078,2766.4,2766.2,3.86864133]
[1738789025305,3.2078,2766.4,2766.3,4.64176934]
[1738789025507,0.00543144,2766.6,2766.3,4.64176934]
[1738789025708,0.00543144,2766.6,2766.5,3.86864133]
[1738789026000,0.00543144,2766.6,2766.5,11.85718097]
[1738789026803,0.7664,2767.3,2766.5,11.85718097]
[1738789027001,0.7664,2767.3,2766.9,3.86864133]
[1738789027302,0.7664,2767.3,2767.0,4.80258324]
[1738789027904,3.2078,2767.2,2766.9,0.00542143]
[1738789028107,0.7071,2767.1,2766.9,0.00542143]
[1738789028618,3.2078,2767.2,2766.9,0.00542143]
[1738789030211,3.2078,2767.2,2766.9,3.87406276]
[1738789030507,3.2078,2767.2,2767.0,4.738571]
[1738789032403,3.2078,2767.5,2767.0,4.738571]
[1738789032605,3.9842,2767.8,2767.2,3.86864133]
[1738789032813,3.2078,2767.8,2767.5,3.86864133]
[1738789033010,3.2078,2768.4,2767.5,3.86864133]
[1738789033308,3.2078,2768.4,2768.2,3.86864133]
[1738789033613,16.73006156,2768.6,2768.2,3.86864133]
[1738789033802,14.15677999,2768.6,2768.5,3.86864133]
[1738789034006,13.98375999,2768.6,2768.5,3.86864133]
[1738789034208,0.17302,2768.6,2768.5,3.86864133]
[1738789034507,0.17302,2770.5,2769.6,0.57761]
[1738789034709,0.17302,2770.5,2768.5,20.24130135]
[1738789034710,0.17302,2770.5,2770.4,3.86864133]
[1738789034913,4.7087,2771.2,2770.4,3.86864133]
[1738789035108,1.5009,2771.2,2771.0,3.86864133]
[1738789035804,62.70538861,2771.3,2771.0,3.86864133]
[1738789036210,62.70538861,2771.3,2771.1,4.65886198]
[1738789036608,62.70538861,2771.3,2771.0,3.86864133]
[1738789037208,3.2078,2771.5,2771.0,3.86864133]
[1738789037612,3.2078,2771.2,2770.6,3.86864133]
[1738789038009,0.7613,2771.1,2770.6,3.86864133]
[1738789038410,3.2078,2770.9,2770.6,3.86864133]
[1738789038711,3.2078,2770.9,2770.2,3.87406276]
[1738789039015,3.2078,2770.5,2770.2,3.87406276]
[1738789039820,8.2078,2770.5,2769.6,7.07644133]
[1738789040115,0.00538806,2770.6,2769.6,7.07644133]
[1738789040914,3.2078,2770.4,2769.6,7.07644133]
[1738789041113,0.00538806,2770.6,2770.0,3.86864133]
[1738789041315,0.00538806,2770.6,2770.4,3.86864133]
[1738789042025,0.00538806,2770.6,2770.5,4.64857341]
[1738789042212,0.00538806,2770.6,2770.4,3.86864133]
[1738789042814,3.21318806,2770.6,2769.9,3.9484]
[1738789043022,3.21318806,2770.6,2770.1,3.86864133]
[1738789044013,3.2078,2770.3,2769.8,3.87406276]
[1738789044219,3.2078,2770.2,2769.8,3.87406276]
[1738789044416,3.2078,2769.9,2769.8,0.00542143]
[1738789045013,8.2078,2769.9,2769.1,3.86864133]
[1738789045215,3.2078,2769.5,2769.1,3.86864133]
[1738789045410,3.2078,2769.5,2769.4,3.86864133]
[1738789046213,3.2078,2769.9,2769.4,3.86864133]
[1738789046720,3.2078,2769.9,2769.3,4.20241118]
[1738789047618,3.2078,2769.9,2769.2,0.00542143]
[1738789048416,3.2078,2769.9,2769.3,4.20241118]
[1738789048713,3.2078,2770.2,2769.3,12.17575872]
[1738789048915,3.2078,2770.2,2769.3,12.75341872]
[1738789049116,3.2078,2770.2,2769.7,4.20241118]
[1738789049319,3.2078,2770.2,2769.3,13.62225872]
[1738789049524,3.2078,2770.2,2769.3,8.85671118]
[1738789050320,3.2078,2769.9,2769.3,3.2078]
[1738789050519,3.2078,2769.9,2769.2,0.00542143]
[1738789051520,3.2078,2769.9,2769.3,3.2078]
[1738789051724,3.2078,2769.9,2769.3,7.92013976]
[1738789052022,3.2078,2769.9,2769.2,0.00542143]
[1738789053018,3.2078,2769.6,2769.2,0.00542143]
[1738789053226,3.2078,2769.3,2769.2,0.00542143]
[1738789053423,3.2078,2769.6,2769.2,0.00542143]
[1738789053622,3.2078,2769.3,2769.2,0.00542143]
[1738789053824,3.2078,2769.3,2768.2,0.747]
[1738789054120,0.57769,2769.2,2768.2,0.747]
[1738789054320,3.2078,2769.0,2768.2,0.747]
[1738789054527,3.2078,2768.7,2768.2,0.747]
[1738789055122,3.21322143,2768.7,2768.2,0.75242143]
[1738789055323,3.21322143,2768.7,2768.2,0.00542143]
[1738789055827,3.2078,2768.4,2768.2,0.00542143]
[1738789057427,3.92992143,2768.7,2768.2,0.00542143]
[1738789057823,3.2078,2768.4,2768.2,0.00542143]
[1738789058530,3.78568,2768.4,2768.2,0.00542143]
[1738789058730,3.92992143,2768.7,2768.2,0.00542143]
[1738789060426,3.21322143,2768.7,2768.2,0.00542143]
[1738789061826,3.2078,2768.4,2768.2,0.00542143]
[1738789062028,0.57788,2768.3,2768.2,0.00542143]
[1738789062222,0.57796,2768.0,2767.1,0.7121]
[1738789062424,3.2078,2767.7,2767.1,0.7121]
[1738789062628,3.2078,2767.7,2767.2,4.71506839]
[1738789063527,4.6588,2768.2,2767.4,3.2078]
[1738789064027,4.6588,2768.2,2767.5,4.76896072]
[1738789066328,3.2078,2768.2,2767.5,4.76896072]
[1738789066723,3.2078,2768.2,2767.7,3.85847604]
[1738789067131,3.78571,2768.2,2767.4,7.06627604]
[1738789067328,3.2078,2768.2,2767.4,7.06627604]
[1738789067531,3.78577,2767.9,2767.2,0.00542143]
[1738789067723,3.2078,2767.6,2767.2,0.00542143]
[1738789067928,3.2078,2767.9,2767.2,0.00542143]
[1738789069837,3.78577,2767.9,2767.2,0.00542143]
[1738789070032,3.2078,2767.9,2767.2,0.00542143]
[1738789070235,3.2078,2767.6,2767.2,0.00542143]
[1738789070734,3.2078,2767.3,2767.2,0.00542143]
[1738789071134,8.2078,2767.3,2767.2,0.00542143]
[1738789071633,3.2078,2767.3,2767.2,0.00542143]
[1738789072936,3.78589,2767.3,2767.2,0.00542143]
[1738789073137,3.2078,2767.3,2767.2,0.00542143]
[1738789073337,3.2078,2767.6,2767.2,0.00542143]
[1738789073535,3.2078,2768.0,2767.2,0.00542143]
[1738789073937,3.2078,2768.0,2767.3,3.85847604]
[1738789074735,3.2078,2768.0,2767.3,7.06627604]
[1738789075048,3.2078,2767.7,2767.2,0.00542143]
[1738789076145,3.2078,2768.0,2767.3,8.55650433]
[1738789077345,3.2078,2768.0,2767.3,3.85847604]
[1738789078543,3.2078,2767.7,2767.2,0.00542143]
[1738789080445,3.2078,2767.4,2767.2,0.00542143]
[1738789080639,0.7437,2767.6,2767.2,0.00542143]
[1738789080946,3.2078,2767.7,2767.2,0.00542143]
[1738789081144,1.452,2767.9,2767.2,0.00542143]
[1738789081346,3.2078,2767.7,2767.2,0.00542143]
[1738789081647,0.57806,2767.5,2767.2,0.00542143]
[1738789082241,0.57807,2767.4,2767.2,0.00542143]
[1738789082443,0.57806,2767.5,2767.2,0.00542143]
[1738789082840,3.2078,2767.4,2767.2,0.00542143]
[1738789083040,3.78587,2767.4,2767.2,0.00542143]
[1738789083339,0.57809,2767.3,2767.2,0.00542143]
[1738789083543,3.2078,2767.4,2767.2,0.00542143]
[1738789083847,3.78588,2767.4,2767.2,0.00542143]
[1738789084045,0.57809,2767.3,2767.2,0.00542143]
[1738789084349,0.57816,2767.0,2766.3,0.7551]
[1738789084541,3.2078,2766.9,2766.3,0.7551]
[1738789085450,3.21322143,2766.9,2766.3,0.76052143]
[1738789086246,3.21322143,2766.9,2766.4,3.85847604]
[1738789086546,3.21322143,2766.9,2766.4,8.48283267]
[1738789086936,0.00542143,2766.9,2766.4,8.48283267]
[1738789087248,3.21322143,2766.9,2766.3,0.76052143]
[1738789090945,3.2078,2766.8,2766.3,0.00542143]
[1738789091150,0.57833,2766.2,2765.5,0.7086]
[1738789091351,3.2078,2765.9,2765.5,4.56707604]
[1738789092144,3.2078,2766.5,2765.6,4.77069687]
[1738789092446,3.2078,2766.5,2765.8,7.06627604]
[1738789094152,3.2078,2766.5,2765.8,3.2078]
[1738789094345,3.2078,2766.5,2765.7,0.78]
[1738789094552,0.57828,2766.4,2765.7,0.78]
[1738789094746,3.78607,2766.5,2765.7,0.78]
[1738789094951,3.2078,2766.5,2765.7,0.78]
[1738789095150,3.78606,2766.5,2765.7,0.78]
[1738789095454,3.2078,2766.2,2765.7,0.78]
[1738789095649,3.2078,2766.5,2765.8,7.06627604]
[1738789095856,3.2078,2766.5,2765.8,11.7446876]
[1738789096152,3.2078,2766.5,2766.1,3.85847604]
[1738789096347,3.2078,2766.5,2766.2,0.7187]
[1738789097348,3.21322143,2766.9,2766.2,0.7187]
[1738789097547,3.21322143,2766.9,2766.3,0.7701]
[1738789099758,3.2078,2766.8,2765.8,3.85847604]
[1738789099954,4.6504,2766.8,2765.8,3.85847604]
[1738789100151,4.6504,2766.8,2765.6,4.6991]
[1738789100457,0.57822,2766.7,2765.6,4.6991]
[1738789100752,3.2078,2766.5,2765.6,4.6991]
[1738789103552,3.2078,2766.5,2765.8,3.85847604]
[1738789104154,3.9273,2766.8,2765.9,3.2078]
[1738789104359,3.2078,2766.8,2765.9,8.6931179]
[1738789104652,3.2078,2766.8,2766.2,3.2078]
[1738789104855,3.2078,2766.8,2766.4,3.85847604]
[1738789105248,0.00542143,2766.9,2766.4,3.85847604]
[1738789106461,0.00542143,2766.9,2766.3,1.5007]
[1738789108152,0.00542143,2766.9,2766.2,3.2078]
[1738789108353,0.00542143,2766.9,2766.2,3.9419]
[1738789108862,0.00542143,2766.9,2766.2,4.52022]
[1738789109062,0.00542143,2766.9,2766.4,3.85847604]
[1738789109856,0.00542143,2766.9,2766.5,3.2078]
[1738789110351,0.00542143,2766.9,2766.6,0.7159]
[1738789111262,0.00542143,2766.9,2766.8,3.2078]
[1738789112854,0.00542143,2766.9,2766.5,3.2078]
[1738789117658,0.00542143,2766.9,2766.2,3.9419]
[1738789118161,0.57824,2766.6,2766.2,0.7341]
[1738789118363,3.2078,2766.5,2766.2,0.7341]
[1738789119763,3.9568,2766.8,2766.2,0.7341]
[1738789122066,3.2078,2766.8,2766.3,3.08222358]
[1738789122672,3.786,2766.8,2766.2,0.7341]
[1738789123061,3.2078,2766.8,2766.2,0.7341]
[1738789123472,0.57822,2766.7,2766.2,0.7341]
[1738789124167,3.2078,2766.5,2766.1,0.7702]
[1738789124373,3.2078,2766.5,2765.7,7.02412358]
[1738789124570,3.2078,2766.5,2765.8,0.7369]
[1738789124767,3.78613,2766.5,2765.8,0.7369]
[1738789124966,3.2078,2766.1,2765.8,0.7369]
[1738789126174,3.2078,2766.1,2765.7,0.7341]
[1738789126370,3.2078,2765.8,2765.7,0.7341]
[1738789127274,3.2078,2765.8,2765.4,0.74054763]
[1738789127573,3.2078,2765.5,2765.4,0.00364763]
[1738789127877,3.2078,2765.5,2764.4,0.718]
[1738789128074,3.2078,2764.7,2764.0,3.2078]
[1738789128375,3.2078,2764.7,2764.1,0.718]
[1738789128772,3.2078,2764.7,2764.3,3.2078]
[1738789128971,0.00542143,2764.7,2764.3,3.2078]
[1738789129171,0.00542143,2764.7,2764.5,3.86407371]
[1738789129369,0.00542143,2764.7,2764.6,0.774]
[1738789129572,3.2078,2765.5,2764.6,0.774]
[1738789129771,3.2078,2765.5,2764.8,3.86407371]
[1738789129978,3.2078,2765.5,2764.9,3.2078]
[1738789130678,3.2078,2765.5,2764.6,0.774]
[1738789130875,3.2078,2765.1,2764.9,0.00542143]
[1738789135381,0.57863,2765.0,2764.9,0.00542143]
[1738789136282,3.2078,2765.1,2764.9,0.00542143]
[1738789136581,3.78642,2765.1,2764.9,0.00542143]
[1738789136880,0.57863,2765.0,2764.9,0.00542143]
[1738789137883,3.78642,2765.1,2764.9,0.00542143]
[1738789138374,3.2078,2765.1,2764.9,0.00542143]
[1738789138575,3.78642,2765.1,2764.9,0.00542143]
[1738789139182,3.2078,2765.1,2764.9,0.00542143]
[1738789139379,3.78642,2765.1,2764.9,0.00542143]
[1738789139575,3.2078,2765.1,2764.9,0.00542143]
[1738789139780,3.78641,2765.1,2764.9,0.00542143]
[1738789139976,3.2078,2765.1,2764.9,0.00542143]
[1738789140981,3.2078,2765.4,2764.9,3.21322143]
[1738789141183,3.2078,2765.4,2765.0,0.7394]
[1738789141882,3.2078,2765.1,2765.0,0.7394]
[1738789142184,0.57874,2764.5,2763.6,7.07187371]
[1738789142386,3.2078,2764.8,2763.7,1.4664]
[1738789142681,3.2078,2764.2,2763.7,1.4664]
[1738789143382,0.57878,2764.3,2763.7,1.4664]
[1738789143684,3.2078,2764.1,2763.7,1.4664]
[1738789144584,3.2078,2763.8,2762.8,3.2078]
[1738789144883,3.2078,2763.4,2762.9,0.7261]
[1738789145591,3.2078,2763.1,2762.9,0.7261]
[1738789146882,8.2078,2763.1,2762.0,0.28611878]
[1738789147084,3.2078,2762.3,2761.2,1.5449]
[1738789147286,3.2078,2761.9,2761.2,1.5449]
[1738789147480,3.2078,2761.9,2761.3,4.7879742]
[1738789147680,3.2078,2761.9,2761.2,1.5449]
[1738789148082,3.2078,2761.6,2761.2,1.5449]
[1738789148285,3.2078,2761.6,2761.2,0.7811]
[1738789148479,3.2078,2761.6,2760.4,0.3624]
[1738789148480,3.2078,2761.3,2760.4,3.2078]
[1738789148883,3.2078,2761.3,2760.5,0.7507]
[1738789150383,3.2078,2761.0,2760.5,0.7507]
[1738789151286,3.2078,2760.7,2759.7,4.7135]
[1738789151485,3.2078,2760.7,2759.8,0.7182]
[1738789151791,3.2078,2760.4,2759.8,5.41379883]
[1738789151984,3.2078,2760.4,2759.8,0.7182]
[1738789152290,0.00543134,2760.5,2760.3,3.2078]
[1738789153490,0.00543134,2760.5,2760.4,4.61868014]
[1738789153685,3.2078,2760.7,2760.4,4.61868014]
[1738789154182,0.7194,2762.8,2760.4,4.61868014]
[1738789154183,3.2078,2761.5,2760.6,3.2078]
[1738789154378,3.2078,2761.5,2760.7,0.7611]
[1738789154584,3.2078,2761.5,2760.7,5.51373075]
[1738789154784,3.2078,2761.2,2760.6,3.2078]
[1738789154994,3.2078,2760.9,2760.8,0.00543134]
[1738789155190,3.2078,2760.9,2758.9,3.86407371]
[1738789155385,3.2078,2760.9,2757.2,2.996]
[1738789155386,3.2078,2759.9,2758.6,4.62517371]
[1738789155689,5.38627371,2760.8,2758.7,4.67756931]
[1738789155690,3.2078,2759.6,2758.7,4.67756931]
[1738789155990,3.2078,2759.0,2758.6,0.7611]
[1738789156382,3.2078,2759.0,2758.1,3.2078]
[1738789156890,3.2078,2759.0,2758.2,4.7190498]
[1738789157287,3.2078,2759.0,2758.2,0.7169]
[1738789157789,3.2078,2759.0,2758.3,4.73849212]
[1738789157988,3.2078,2759.0,2758.2,0.7169]
[1738789158385,3.2078,2758.4,2757.5,3.2078]
[1738789158590,3.2078,2758.1,2757.1,1.5167]
[1738789158788,3.2078,2758.1,2757.6,3.2078]
[1738789158987,0.00543134,2759.1,2757.6,3.2078]
[1738789158988,3.2078,2758.4,2757.6,3.2078]
[1738789159290,3.2078,2758.6,2758.0,3.2078]
[1738789160688,3.2078,2758.7,2758.1,3.9706]
[1738789160989,3.2078,2758.7,2757.4,0.28983992]
[1738789160990,3.2078,2758.3,2757.4,0.28983992]
[1738789161294,3.2078,2758.1,2757.4,0.28983992]
[1738789161595,3.2078,2758.1,2757.2,3.2078]
[1738789161797,3.2078,2757.9,2756.9,3.9706]
[1738789162189,3.2078,2757.9,2757.0,4.79804561]
[1738789162493,0.00543134,2757.7,2757.2,3.2078]
[1738789163086,7.44488306,2757.4,2756.2,3.2078]
[1738789163285,3.2078,2756.8,2756.2,3.2078]
[1738789163485,3.2078,2756.8,2756.0,4.8216325]
[1738789163788,3.2078,2756.5,2755.9,3.2078]
[1738789164388,3.2078,2756.2,2755.6,0.7755]
[1738789164589,3.2078,2755.8,2754.6,3.9352]
[1738789164788,4.23708306,2756.2,2754.7,0.7755]
[1738789164789,3.2078,2755.3,2754.7,0.7755]
[1738789165084,3.2078,2755.3,2754.7,5.59779014]
[1738789165284,0.00544168,2755.5,2754.7,0.7755]
[1738789165484,0.00544168,2755.5,2754.8,4.80797593]
[1738789165685,3.21324168,2755.5,2754.8,4.80797593]
[1738789165885,3.21324168,2755.5,2754.4,3.2078]
[1738789165886,3.2078,2755.2,2754.4,3.2078]
[1738789166088,3.2078,2755.0,2754.2,3.2078]
[1738789166286,3.2078,2755.4,2754.8,3.2078]
[1738789166486,0.00544168,2755.5,2754.8,3.78857]
[1738789166688,0.00544168,2755.5,2755.2,3.2078]
[1738789166889,3.2078,2757.0,2755.3,4.23708306]
[1738789167095,0.07254525,2756.9,2756.6,3.2078]
[1738789167287,3.2078,2758.7,2756.7,0.7786]
[1738789167487,0.7427,2759.2,2758.4,3.2078]
[1738789167488,3.2078,2759.2,2758.4,3.2078]
[1738789167793,0.0724874,2759.1,2758.7,3.2078]
[1738789167994,0.0724874,2759.1,2756.8,0.3632]
[1738789167995,0.0724874,2759.1,2759.0,3.2078]
[1738789168190,3.2802874,2759.1,2758.8,4.62859836]
[1738789168390,3.2802874,2759.1,2758.6,0.00544168]
[1738789168391,0.07249003,2759.0,2758.6,0.00544168]
[1738789169196,3.2078,2759.1,2758.6,0.00544168]
[1738789170093,0.00544168,2759.2,2758.6,0.00544168]
[1738789170295,0.00544168,2759.2,2758.9,3.2078]
[1738789170497,0.00544168,2759.2,2758.7,4.77835698]
[1738789170798,3.2078,2759.1,2758.6,0.00544168]
[1738789171099,3.2078,2758.7,2758.6,0.00544168]
[1738789171991,3.21324168,2759.2,2758.6,0.00544168]
[1738789172194,3.2078,2758.9,2758.6,0.00544168]
[1738789172590,3.21324168,2759.2,2758.6,0.00544168]
[1738789172901,3.21324168,2759.2,2758.7,4.67224403]
[1738789172902,0.00544168,2759.2,2758.7,4.67224403]
[1738789173098,0.00544168,2759.2,2759.1,3.2078]
[1738789173299,0.00544168,2759.2,2758.9,3.2078]
[1738789173496,0.00544168,2759.2,2758.9,8.2078]
[1738789173701,3.2078,2760.9,2759.6,0.57976]
[1738789173894,0.07244277,2760.8,2759.6,7.44488306]
[1738789174199,0.07244277,2760.8,2760.3,3.2078]
[1738789174399,0.07244277,2760.8,2760.6,3.2078]
[1738789174798,0.07244277,2760.8,2760.7,4.7074227]
[1738789174997,0.05253085,2760.8,2760.7,4.7074227]
[1738789175201,0.05253085,2760.8,2760.7,9.7074227]
[1738789175494,0.00543144,2761.0,2760.7,9.7074227]
[1738789175701,0.00543144,2761.0,2760.9,3.2078]
[1738789176499,0.00543144,2761.0,2760.6,3.2078]
[1738789176798,0.00543144,2761.0,2760.9,3.2078]
[1738789177192,3.2078,2762.5,2760.9,20.47860188]
[1738789177401,3.2078,2762.5,2761.6,3.2078]
[1738789177800,3.2078,2762.5,2762.1,3.2078]
[1738789178496,3.2078,2762.5,2762.2,4.68169646]
[1738789178699,3.2078,2762.5,2762.1,3.2078]
[1738789178895,0.00543144,2762.6,2762.1,3.2078]
[1738789179096,0.00543144,2762.6,2762.4,3.2078]
[1738789179300,0.00543144,2762.6,2762.0,3.21323144]
[1738789179701,0.00543144,2762.6,2762.0,0.00543144]
[1738789180206,0.00543144,2762.6,2762.1,3.2078]
[1738789180406,0.00543144,2762.6,2762.4,3.2078]
[1738789180904,0.00543144,2762.6,2762.0,0.00543144]
[1738789181098,0.00543144,2762.6,2762.1,3.2078]
[1738789181299,0.00543144,2762.6,2762.1,4.69539067]
[1738789181498,0.00543144,2762.6,2762.2,3.2078]
[1738789181696,0.00543144,2762.6,2762.0,0.00543144]
[1738789182007,0.00543144,2762.6,2762.1,4.69539067]
[1738789182304,3.2078,2762.2,2762.0,0.00543144]
[1738789182804,3.21323144,2762.6,2762.1,4.60061173]
[1738789183104,0.00543144,2762.6,2762.0,0.00543144]
[1738789183305,0.00543144,2762.6,2762.2,3.2078]
[1738789183702,0.00543144,2762.6,2762.3,4.81084267]
[1738789184002,0.00543144,2762.6,2762.1,3.2078]
[1738789184402,0.00543144,2762.6,2762.4,4.7405488]
[1738789184601,0.00543144,2762.6,2762.2,4.7405488]
[1738789184903,0.00543144,2762.6,2762.4,4.7405488]
[1738789185408,0.00543144,2762.6,2762.2,4.767657]
[1738789185597,0.00543144,2762.6,2762.1,3.2078]
[1738789185807,0.00543144,2762.6,2762.5,3.2078]
[1738789186207,0.00543144,2762.6,2762.5,12.975457]
[1738789186403,3.2078,2763.7,2762.5,12.975457]
[1738789186603,3.2078,2763.7,2762.9,3.2078]
[1738789187010,3.2078,2764.1,2763.2,3.2078]
[1738789187414,3.2078,2764.1,2763.3,4.77833825]
[1738789187713,0.00543144,2763.9,2763.4,0.00543144]
[1738789188106,3.2078,2763.8,2763.4,0.00543144]
[1738789188510,3.2078,2763.8,2763.4,3.21323144]
[1738789188709,0.00543144,2763.9,2763.4,3.21323144]
[1738789190308,0.00543144,2763.9,2763.4,0.00543144]
[1738789190512,3.2078,2763.7,2763.4,0.00543144]
[1738789192314,0.00543144,2763.9,2763.4,0.00543144]